Cogmind - Beta 11.1 @@@ ROGUE MODE // 2022.06.08 @ 11:46:12 Player: Cookedpoo Result: Destroyed by Lightning with EMDS Performance ------------- Evolutions (7) 3500 Regions Visited (13) 2600 Robots Destroyed (64) 320 Value Destroyed (1896) 1896 Prototype IDs (25) 500 Alien Tech Used (2) 400 Bonus (5661) 5661 TOTAL SCORE: 14877 Bonus ------- High Alert Combat Kills 36 Follower Combat Kills 125 Used Core Reset Matrix 3000 Scanned by Researcher 500 Met Sigix 2000 Cogmind --------- Core Integrity 0/1300 Matter 123/300 Energy 99/100 System Corruption 2% Temperature Cool (0) Movement Core (50) Location -3/Quarantine Parts ------- > --- POWER (2) -------- (None) > --- PROPULSION (4) --- (None) > --- UTILITY (13) ----- Enhanced Optical Array Advanced Signal Interpreter Advanced Terrain Scan Processor Transport Network Coupler Advanced Component Analysis Suite > --- WEAPON (2) ------- (None) > --- INVENTORY (5) ---- Micro Antimatter Reactor Sigix Broadsword Sigix Containment Pod Peak State ------------ > --- POWER ------------ Light Particle Reactor Micro Antimatter Reactor > --- PROPULSION ------- Cooled Field Propulsion Drive Cooled Field Propulsion Drive Cooled Field Propulsion Drive Cooled Field Propulsion Drive > --- UTILITY ---------- Advanced Weight Redist. System Enhanced Optical Array Long-range Sensor Array Advanced Signal Interpreter Long-range Terrain Scanner Advanced Terrain Scan Processor Transport Network Coupler Improved Melee Analysis Suite Improved Melee Analysis Suite Improved Transmission Jammer Advanced Reaction Control System Advanced Component Analysis Suite Advanced System Restoration Module > --- WEAPON ----------- Lance Lance > --- INVENTORY -------- Cooled VTOL Module Cooled Nuclear Pulse Thruster Improved Transmission Jammer Micro-nuke Launcher [Rating: 129] Favorites ----------- Power Heavy Deuterium Engine Engine Heavy Deuterium Engine Reactor Micro Antimatter Reactor Propulsion Cesium-ion Thruster Treads Improved Treads Hover Unit Hover Unit Flight Unit Cesium-ion Thruster Utility Improved Melee Analysis Suite Device Advanced Sensor Array Storage Small Storage Unit Processor Improved Melee Analysis Suite Hackware Hacking Suite Weapon Autogun Energy Gun Small Laser Energy Cannon Advanced Beam Cannon Ballistic Gun Autogun Launcher Advanced EMP Blaster Impact Weapon Impact Mace Slashing Weapon Sigix Broadsword Piercing Weapon Lance Build | -11 -10 -10 -10 -9 -8 -7 -6 -5 -4 -4 -4 -3 -3 ------- Run | Scr Mat Min Exi Min Mat Fac Fac Fac Fac Was Fac Res Qua Slots Evolved 14 | . . . . . 4 2 2 2 2 . . 2 . Power 1 | . . . . . . . . . 1 . . . . Propulsion 2 | . . . . . . 2 . . . . . . . Utility 11 | . . . . . 4 . 2 2 1 . . 2 . Weapon . | . . . . . . . . . . . . . . Parts Attached 108 | 2 4 . . 3 26 13 5 17 . . 12 11 15 Power 13 | . . . . 1 . 2 . . . . 2 4 4 Engine 3 | . . . . 1 . 2 . . . . . . . Core . | . . . . . . . . . . . . . . Reactor 10 | . . . . . . . . . . . 2 4 4 Propulsion 25 | . 1 . . 1 8 4 1 2 . . 4 . 4 Treads 2 | . . . . . 2 . . . . . . . . Leg . | . . . . . . . . . . . . . . Wheel . | . . . . . . . . . . . . . . Hover 5 | . 1 . . 1 3 . . . . . . . . Flight 18 | . . . . . 3 4 1 2 . . 4 . 4 Utility 47 | . 1 . . 1 8 3 4 15 . . 4 6 5 Device 29 | . . . . . 1 . 4 13 . . 1 5 5 Storage 1 | . . . . 1 . . . . . . . . . Processor 13 | . 1 . . . 6 3 . 1 . . 1 1 . Hackware 4 | . . . . . 1 . . 1 . . 2 . . Protection . | . . . . . . . . . . . . . . Artifact . | . . . . . . . . . . . . . . Weapon 23 | 2 2 . . . 10 4 . . . . 2 1 2 Energy Gun 1 | 1 . . . . . . . . . . . . . Energy Cannon 1 | . . . . . 1 . . . . . . . . Ballistic Gun 10 | 1 2 . . . 7 . . . . . . . . Ballistic Cannon . | . . . . . . . . . . . . . . Launcher 3 | . . . . . 2 . . . . . . . 1 Special Weapon . | . . . . . . . . . . . . . . Impact Weapon 2 | . . . . . . 2 . . . . . . . Slashing Weapon 1 | . . . . . . . . . . . . . 1 Piercing Weapon 5 | . . . . . . 2 . . . . 2 1 . Special Melee Weapon . | . . . . . . . . . . . . . . Unidentified Prototypes 13 | . . . . . 4 3 1 1 . . 1 . 3 Parts Lost 16 | . . . . . 2 . 1 . . . . 3 10 Power 1 | . . . . . . . . . . . . 1 . Propulsion 7 | . . . . . 2 . 1 . . . . . 4 Utility 7 | . . . . . . . . . . . . 2 5 Weapon 1 | . . . . . . . . . . . . . 1 Highest Loss Streak 9 | . . . . . 1 . 1 . . . . 2 9 To Critical Strikes . | . . . . . . . . . . . . . . Average Slot Usage (%) 84 | . 49 57 57 61 80 98 99 95 89 89 95 97 68 Engine 2 | . . . . 1 2 6 6 5 5 5 1 . . Reactor 1 | . . . . . . . . . . . 4 8 4 Hover 3 | . 11 14 14 15 4 . . . . . . . . Flight 14 | . . . . . 7 29 26 22 21 21 21 19 13 Device 14 | . . . . . 6 7 19 19 21 21 23 30 15 Processor 28 | . 9 14 14 14 31 38 33 32 31 31 31 28 26 Hackware 1 | . . . . . 5 . . 1 . . 2 . . Ballistic Gun 8 | . 24 28 28 28 17 7 . . . . . . . Impact Weapon 3 | . . . . . . 1 13 11 10 10 3 . . Piercing Weapon 2 | . . . . . . 5 . . . . 6 9 6 Naked Turns . | . . . . . . . . . . . . . . Heaviest Build 37 | 3 6 6 6 14 14 18 20 20 20 20 36 37 28 Greatest Support 49 | 3 6 6 6 15 46 20 20 30 21 21 49 49 39 Greatest Overweight (x) 8 | . . . . . 1 . . . . . . . 8 Average Overweight (x) . | . . . . . . . . . . . . . . Largest Inventory Capacity 8 | 5 5 5 5 8 8 5 5 5 5 5 5 5 5 Average Capacity 5 | 5 5 5 5 5 5 5 5 5 5 5 5 5 5 Most Carried 8 | 3 5 5 5 8 8 5 5 5 5 5 5 5 5 Average Carried 4 | 2 3 4 5 5 5 3 4 4 5 5 4 4 4 Final Capacity 8 | 5 5 5 5 8 5 5 5 5 5 5 5 5 5 Final Carried 8 | 3 4 5 5 8 5 4 5 5 5 5 5 4 5 Class Distribution -------------------- 36% | Ninja 35% | Scout 24% | Mutant Dominant Class ---------------- Mutant | -10/Materials Mutant | -10/Mines Mutant | -10/Exiles Mutant | -9/Mines Scout | -8/Materials Scout | -7/Factory Scout | -6/Factory Scout | -5/Factory Ninja | -4/Factory Ninja | -4/Waste Ninja | -4/Factory Ninja | -3/Research Ninja | -3/Quarantine Resources | -11 -10 -10 -10 -9 -8 -7 -6 -5 -4 -4 -4 -3 -3 ----------- Run | Scr Mat Min Exi Min Mat Fac Fac Fac Fac Was Fac Res Qua Matter Collected 1840 | 189 142 . . 30 845 136 36 252 . . 120 90 . Remotely . | . . . . . . . . . . . . . . Salvage Created 3577 | . 310 . . . 1084 117 36 596 208 . 708 246 272 Parts 123 | . 14 . . . 51 4 . 10 3 . 16 8 17 Haulers Intercepted 16 | . . . . . 2 1 . 6 2 . 3 2 . Recyclers Shooed 5 | . . . . . 2 . . . . . 2 . 1 Parts Field Recycled . | . . . . . . . . . . . . . . Retrieved Matter . | . . . . . . . . . . . . . . Parts Self-Destructed . | . . . . . . . . . . . . . . Prevented . | . . . . . . . . . . . . . . Kills | -11 -10 -10 -10 -9 -8 -7 -6 -5 -4 -4 -4 -3 -3 ------- Run | Scr Mat Min Exi Min Mat Fac Fac Fac Fac Was Fac Res Qua Combat Hostiles Destroyed 27 | . 6 . . . 13 . . . . . . 1 7 Melee 1 | . . . . . . . . . . . . 1 . Guns 19 | . 6 . . . 13 . . . . . . . . AOE 7 | . . . . . . . . . . . . . 7 Classes Destroyed 11 | . 2 . . . 5 1 1 . . . . 1 1 Worker 2 | . . . . . . 1 . . . . . . 1 Builder 2 | . . . . . 1 . . . . . . . 1 Hauler 16 | . . . . . 2 1 . 6 2 . 3 2 . Recycler 8 | . . . . . 3 1 . . . . 3 . 1 Operator 3 | . 1 . . . 2 . . . . . . . . Watcher 6 | . . . . . . . 1 1 1 . 2 1 . Swarmer 5 | . . . . . . . . . . . . . 5 Grunt 16 | . 6 . . . 9 . . . . . . . 1 Sentry 3 | . . . . . 3 . . . . . . . . Hunter 1 | . . . . . 1 . . . . . . . . Programmer 2 | . . . . . . . . . . . . 1 1 Best Kill Streak 10 | . 6 . . . 4 2 1 3 2 . 3 1 10 Combat Bots Only 7 | . 6 . . . 2 . . . . . . 1 7 Max Kills in Single Turn 5 | . 1 . . . 2 1 1 1 1 . 1 1 5 Gunslinging . | . . . . . . . . . . . . . . Exploded 5 | . . . . . . . . . . . . . 5 Melee 1 | . . . . . . . . . . . . 1 . Uniques/NPCs Destroyed . | . . . . . . . . . . . . . . Combat | -11 -10 -10 -10 -9 -8 -7 -6 -5 -4 -4 -4 -3 -3 -------- Run | Scr Mat Min Exi Min Mat Fac Fac Fac Fac Was Fac Res Qua Damage Taken 3255 | . 26 . . . 512 . . 27 37 . 130 479 2044 Core 1541 | . 3 . . . 107 . . 27 16 . 60 94 1234 Absorbed by Shields . | . . . . . . . . . . . . . . Regen/Repaired (Parts) 41 | . . . . . 31 . . . . . . . 10 Core Remaining (%) 95 | 100 . . . 98 80 100 100 97 . . 93 . . Volleys Fired 103 | . 11 . . . 82 6 . . . . . . 4 Largest 2 | . 2 . . . 2 2 . . . . . . 1 Hottest 60 | . 60 . . . 46 46 . . . . . . 49 Shots Fired 199 | . 22 . . . 161 12 . . . . . . 4 Gun 194 | . 22 . . . 160 12 . . . . . . . Cannon . | . . . . . . . . . . . . . . Launcher 5 | . . . . . 1 . . . . . . . 4 Special . | . . . . . . . . . . . . . . Kinetic 191 | . 19 . . . 160 12 . . . . . . . Thermal 3 | . 3 . . . . . . . . . . . . Explosive 4 | . . . . . . . . . . . . . 4 Electromagnetic 1 | . . . . . 1 . . . . . . . . Robot Hit Streak 11 | . 8 . . . 8 11 . . . . . . . Robot Miss Streak 4 | . 1 . . . 4 . . . . . . . 4 Penetration Max . | . . . . . . . . . . . . . . Secondary Targets . | . . . . . . . . . . . . . . Shots Hit Robots 186 | . 15 . . . 98 11 1 20 7 . 26 8 . Core Hits 88 | . 11 . . . 42 5 . 5 2 . 6 4 13 Critical Kills 2 | . . . . . . 1 . 1 . . . . . Critical Parts Destroyed 6 | . . . . . 1 . 1 2 1 . 1 . . Critical Strikes 11 | . . . . . 1 1 1 3 1 . 3 1 . Destroy 2 | . . . . . 1 1 . . . . . . . Smash 6 | . . . . . . . 1 3 1 . 1 . . Impale 3 | . . . . . . . . . . . 2 1 . Melee Attacks 133 | . . . . . . 5 4 25 13 . 47 36 3 Impact 54 | . . . . . . . 4 25 13 . 12 . . Slashing 1 | . . . . . . . . . . . . . 1 Piercing 78 | . . . . . . 5 . . . . 35 36 2 Sneak Attacks 24 | . . . . . . 1 1 9 4 . 5 4 . Combat Hostiles . | . . . . . . . . . . . . . . Follow-up Attacks 15 | . . . . . . . . 5 3 . 4 3 . Damage Inflicted 7781 | . 231 . . . 1538 239 109 1516 679 . 1687 546 1236 Guns 1917 | . 225 . . . 1538 154 . . . . . . . Cannons . | . . . . . . . . . . . . . . Explosions 1213 | . . . . . . . . . . . . . 1213 Melee 4608 | . . . . . . 85 109 1516 679 . 1673 546 . Ramming 43 | . 6 . . . . . . . . . 14 . 23 Kinetic 1905 | . 213 . . . 1538 154 . . . . . . . Thermal 12 | . 12 . . . . . . . . . . . . Explosive 1213 | . . . . . . . . . . . . . 1213 Electromagnetic . | . . . . . . . . . . . . . . Impact 3051 | . . . . . . . 109 1516 679 . 747 . . Slashing . | . . . . . . . . . . . . . . Piercing 1557 | . . . . . . 85 . . . . 926 546 . Highest Corruption 7 | . . . . . . . . . . . . 2 7 Average Corruption 1 | . . . . . . . . . . . . 1 1 Corruption Purged 2 | . . . . . . . . . . . . 1 1 Corruption Blocked 15 | . . . . . . . . . . . . . 15 Effects 2 | . . . . . . . . . . . . 1 1 Energy Discharges 1 | . . . . . . . . . . . . . 1 Data Loss (major) 1 | . . . . . . . . . . . . 1 . Overload Shots . | . . . . . . . . . . . . . . Overflow Damage 1198 | . . . . . . . 109 293 263 . 433 39 61 Projectiles . | . . . . . . . . . . . . . . Explosions 61 | . . . . . . . . . . . . . 61 Melee 1137 | . . . . . . . 109 293 263 . 433 39 . Knockbacks 3 | . . . . . . . . 1 . . 1 . 1 Impact 3 | . . . . . . . . 1 . . 1 . 1 Kinetic . | . . . . . . . . . . . . . . Secondary . | . . . . . . . . . . . . . . Self-Inflicted Damage 168 | . 3 . . . . . . . . . 7 . 158 Shots 3 | . . . . . . . . . . . . . 3 Rammed 5 | . 1 . . . . . . . . . 1 . 3 Targets Rammed 5 | . 1 . . . . . . . . . 1 . 3 Kicked . | . . . . . . . . . . . . . . Crushed . | . . . . . . . . . . . . . . Highest Temperature 246 | . 8 . . . 26 . . . . . 246 160 36 Average Temperature 47 | . 8 . . . 7 . . . . . 140 72 25 Received Heat Transfer 415 | . 15 . . . 225 . . . 9 . 9 42 115 Siege Activations . | . . . . . . . . . . . . . . Robots Corrupted . | . . . . . . . . . . . . . . Combat Hostiles . | . . . . . . . . . . . . . . Parts Fried 9 | . . . . . . . 2 4 . . 3 . . Impact Corruptions 18 | . . . . . . . 3 6 4 . 5 . . Robots Melted . | . . . . . . . . . . . . . . Combat Hostiles . | . . . . . . . . . . . . . . Parts Melted . | . . . . . . . . . . . . . . Heat Transferred 25 | . 25 . . . . . . . . . . . . Parts Sabotaged . | . . . . . . . . . . . . . . Parts Stolen . | . . . . . . . . . . . . . . Parts Stripped . | . . . . . . . . . . . . . . Power Chain Reactions . | . . . . . . . . . . . . . . Missiles Intercepted . | . . . . . . . . . . . . . . Alert | -11 -10 -10 -10 -9 -8 -7 -6 -5 -4 -4 -4 -3 -3 ------- Run | Scr Mat Min Exi Min Mat Fac Fac Fac Fac Was Fac Res Qua Peak Influence 534 | . 227 88 . 58 297 371 247 300 302 150 438 409 534 Initial 229 | . . 88 . . 22 111 181 120 121 105 105 229 155 Average 171 | . 88 88 . 7 126 210 214 187 180 117 217 259 216 Maximum Alert Level 2 | . 1 . . . 1 1 1 1 1 . 2 2 2 Low Security (%) 63 | 100 79 100 . 100 82 49 38 72 61 100 46 18 70 Level 1 35 | . 20 . . . 17 50 61 27 38 . 51 81 20 Level 2 . | . . . . . . . . . . . 1 . 9 Level 3 . | . . . . . . . . . . . . . . Level 4 . | . . . . . . . . . . . . . . Level 5 . | . . . . . . . . . . . . . . High Security . | . . . . . . . . . . . . . . Max Security . | . . . . . . . . . . . . . . Squads Dispatched 14 | . 1 1 . 1 3 1 . . 1 . 3 1 2 Investigation 2 | . . . . 1 1 . . . . . . . . Extermination 4 | . . . . . . 1 . . 1 . 1 1 . Reinforcement 7 | . 1 . . . 2 . . . . . 2 . 2 Assault 1 | . . 1 . . . . . . . . . . . Garrison . | . . . . . . . . . . . . . . Intercept . | . . . . . . . . . . . . . . Searches Triggered . | . . . . . . . . . . . . . . Construction Impeded 1 | . . . . . . . . . . . . . 1 Haulers Reinforced . | . . . . . . . . . . . . . . Active Scanning Responses . | . . . . . . . . . . . . . . Cargo Convoy Interrupts . | . . . . . . . . . . . . . . Stealth | -11 -10 -10 -10 -9 -8 -7 -6 -5 -4 -4 -4 -3 -3 --------- Run | Scr Mat Min Exi Min Mat Fac Fac Fac Fac Was Fac Res Qua Distress Signals 17 | . . . . . 8 2 . 1 1 . . 2 3 Communications Jammed 10 | . . . . . . . . . . . 4 6 . Distress Signals 9 | . . . . . . . . . . . 3 6 . Times Spotted 171 | . 9 . . 2 32 17 1 13 5 4 23 33 32 Peak Tracking Total 18 | . 4 . . 2 4 8 2 2 5 4 9 18 14 Tactical Retreats 28 | . . . . . 3 5 2 4 2 . 4 6 2 Traps | -11 -10 -10 -10 -9 -8 -7 -6 -5 -4 -4 -4 -3 -3 ------- Run | Scr Mat Min Exi Min Mat Fac Fac Fac Fac Was Fac Res Qua Traps Triggered 9 | . . . . . 1 . . 1 1 . 4 2 . Indirectly 1 | . . . . . 1 . . . . . . . . Trap Hack Attempts . | . . . . . . . . . . . . . . Triggered . | . . . . . . . . . . . . . . Disarmed . | . . . . . . . . . . . . . . Reprogrammed . | . . . . . . . . . . . . . . Reused . | . . . . . . . . . . . . . . Traps Extracted . | . . . . . . . . . . . . . . Installed . | . . . . . . . . . . . . . . Triggered . | . . . . . . . . . . . . . . Machines | -11 -10 -10 -10 -9 -8 -7 -6 -5 -4 -4 -4 -3 -3 ---------- Run | Scr Mat Min Exi Min Mat Fac Fac Fac Fac Was Fac Res Qua Machines Disabled 6 | . . . . . . . . 1 . . 2 1 2 Max in Single Turn 1 | . . . . . . . . 1 . . 1 1 1 Garrison Access 3 | . . . . . . . . 3 . . . . . Machines Sabotaged . | . . . . . . . . . . . . . . Garrisons Compromised . | . . . . . . . . . . . . . . Overloaded Fab Kills . | . . . . . . . . . . . . . . Hacking | -11 -10 -10 -10 -9 -8 -7 -6 -5 -4 -4 -4 -3 -3 --------- Run | Scr Mat Min Exi Min Mat Fac Fac Fac Fac Was Fac Res Qua Machines Accessed 40 | . 2 . 1 1 3 2 11 7 2 . 4 3 4 Terminals 21 | . 2 . . . . 1 6 3 1 . 3 2 3 Fabricators 1 | . . . . . . . 1 . . . . . . Repair Stations 3 | . . . . . 2 . . . . . . . 1 Recycling Units 1 | . . . . . . . 1 . . . . . . Scanalyzers 3 | . . . . . 1 . 1 1 . . . . . Garrison Access 9 | . . . . . . 1 2 3 1 . 1 1 . Total Hacks 82 | . 6 . 1 1 11 4 16 14 3 . 9 6 11 Successful 36 | . 3 . 1 1 7 . 5 7 . . 3 2 7 Failed 45 | . 2 . . . 4 4 11 7 3 . 6 4 4 Catastrophic 12 | . 1 . . . . 1 4 2 2 . . 2 . Database Lockouts 1 | . 1 . . . . . . . . . . . . Manual 23 | . 5 . . . . . 1 3 . . 5 2 7 Terminals 51 | . 6 . . . . 3 9 8 2 . 8 5 10 Fabricators 1 | . . . . . . . 1 . . . . . . Repair Stations 9 | . . . . . 8 . . . . . . . 1 Recycling Units 1 | . . . . . . . 1 . . . . . . Scanalyzers 7 | . . . . . 3 . 2 2 . . . . . Garrison Access 11 | . . . . . . 1 3 4 1 . 1 1 . Terminal Hacks 22 | . 3 . 1 1 . . 3 2 . . 3 2 7 Record 6 | . 1 . 1 . . . . . . . 2 1 1 Robot Analysis 4 | . 2 . . . . . 1 1 . . . . . Prototype ID Bank 6 | . . . . . . . . 1 . . . . 5 Open Door 2 | . . . . 1 . . . . . . . . 1 Open DSF 1 | . . . . . . . 1 . . . . . . Level Access Points 1 | . . . . . . . . . . . 1 . . Unreport Threat 1 | . . . . . . . . . . . . 1 . Locate Traps 1 | . . . . . . . 1 . . . . . . Fabricator Hacks 1 | . . . . . . . 1 . . . . . . Build 1 | . . . . . . . 1 . . . . . . Repair Station Hacks 4 | . . . . . 4 . . . . . . . . Scan Component 3 | . . . . . 3 . . . . . . . . Repair 1 | . . . . . 1 . . . . . . . . Recycling Unit Hacks . | . . . . . . . . . . . . . . Scanalyzer 6 | . . . . . 3 . 1 2 . . . . . Insert Component 3 | . . . . . 1 . 1 1 . . . . . Analyze 3 | . . . . . 2 . . 1 . . . . . Garrison Access Hacks 3 | . . . . . . . . 3 . . . . . Seal Access 3 | . . . . . . . . 3 . . . . . Unauthorized Hacks . | . . . . . . . . . . . . . . Terminals . | . . . . . . . . . . . . . . Fabricators . | . . . . . . . . . . . . . . Repair Stations . | . . . . . . . . . . . . . . Recycling Units . | . . . . . . . . . . . . . . Scanalyzers . | . . . . . . . . . . . . . . Garrison Access . | . . . . . . . . . . . . . . Data Cores Recovered . | . . . . . . . . . . . . . . Used . | . . . . . . . . . . . . . . Hacking Detections 33 | . 2 . . . 3 2 10 4 2 . 4 3 3 Full Trace Events 1 | . . . . . 1 . . . . . . . . Feedback Events . | . . . . . . . . . . . . . . Feedback Blocked . | . . . . . . . . . . . . . . Robot Schematics Acquired . | . . . . . . . . . . . . . . Robots Built . | . . . . . . . . . . . . . . Authchips . | . . . . . . . . . . . . . . Time . | . . . . . . . . . . . . . . Total Robot Build Rating . | . . . . . . . . . . . . . . Part Schematics Acquired 2 | . . . . . 1 . . 1 . . . . . Parts Built 2 | . . . . . . . 2 . . . . . . Authchips . | . . . . . . . . . . . . . . Time 53 | . . . . . . . 53 . . . . . . Total Part Build Rating 12 | . . . . . . . 12 . . . . . . Parts Repaired 1 | . . . . . 1 . . . . . . . . Time 30 | . . . . . 30 . . . . . . . . Parts Recycled . | . . . . . . . . . . . . . . Recycled Matter . | . . . . . . . . . . . . . . Retrieved Matter . | . . . . . . . . . . . . . . Retrieved Components . | . . . . . . . . . . . . . . Parts Scanalyzed 2 | . . . . . 1 . 1 . . . . . . Part Schematics Acquired 2 | . . . . . 1 . . 1 . . . . . Parts Damaged . | . . . . . . . . . . . . . . Bothacking | -11 -10 -10 -10 -9 -8 -7 -6 -5 -4 -4 -4 -3 -3 ------------ Run | Scr Mat Min Exi Min Mat Fac Fac Fac Fac Was Fac Res Qua Used RIF Installer . | . . . . . . . . . . . . . . Robots Hacked . | . . . . . . . . . . . . . . Non-combat . | . . . . . . . . . . . . . . Combat . | . . . . . . . . . . . . . . Robot Hacks Applied . | . . . . . . . . . . . . . . Relay Couplers Released . | . . . . . . . . . . . . . . Fabnet Peak Effective % . | . . . . . . . . . . . . . . Robots Rewired 1 | . . . . . . 1 . . . . . . . Allies Hacked . | . . . . . . . . . . . . . . Hacks Repelled . | . . . . . . . . . . . . . . Allies | -11 -10 -10 -10 -9 -8 -7 -6 -5 -4 -4 -4 -3 -3 -------- Run | Scr Mat Min Exi Min Mat Fac Fac Fac Fac Was Fac Res Qua Total Allies 5 | . . 3 . . . 1 . . . 1 . . . Largest Group 3 | . . 3 3 3 3 1 . . . 1 . . . Highest-Rated Group 46 | . . 40 40 40 40 21 . . . 46 . . . Highest-Rated Ally 46 | . . 16 16 16 16 21 . . . 46 . . . Total Orders . | . . . . . . . . . . . . . . Ally Attacks 28 | . . . . 11 6 7 . . . 4 . . . Total Damage 476 | . . . . 100 79 237 . . . 60 . . . Kills 5 | . . . . 2 1 2 . . . . . . . Allies Corrupted . | . . . . . . . . . . . . . . Allies Melted . | . . . . . . . . . . . . . . Intel | -11 -10 -10 -10 -9 -8 -7 -6 -5 -4 -4 -4 -3 -3 ------- Run | Scr Mat Min Exi Min Mat Fac Fac Fac Fac Was Fac Res Qua Robot Analysis Total 4 | . 2 . . . . . 1 1 . . . . . Derelict Logs Recovered 2 | . . 1 . 1 . . . . . . . . . Drone Launches . | . . . . . . . . . . . . . . Drone Recoveries . | . . . . . . . . . . . . . . Exploration | -11 -10 -10 -10 -9 -8 -7 -6 -5 -4 -4 -4 -3 -3 ------------- Run | Scr Mat Min Exi Min Mat Fac Fac Fac Fac Was Fac Res Qua Turns Passed 4505 | 20 247 214 151 190 936 277 231 622 275 17 602 516 207 Spaces Moved 8075 | 27 271 289 144 254 921 683 805 1551 441 66 1267 978 378 Core 133 | 27 86 . . . . . . . . . . . 20 Treads 43 | . . . . . 43 . . . . . . . . Legs . | . . . . . . . . . . . . . . Wheels . | . . . . . . . . . . . . . . Hover 1217 | . 185 289 144 254 345 . . . . . . . . Flight 6682 | . . . . . 533 683 805 1551 441 66 1267 978 358 Fastest Speed 17 | 50 50 60 60 56 32 26 26 26 26 26 19 19 17 Average Speed 33 | 50 56 60 60 59 50 26 26 26 26 26 27 30 33 Slowest Speed 450 | 50 60 60 60 60 160 32 26 26 26 26 31 34 450 Overloaded Moves 151 | . . . . . . . . . . . 32 77 42 Propulsion Burnouts . | . . . . . . . . . . . . . . Robots Hopped 57 | . . . . . 1 4 2 18 2 . 7 11 12 Cave-ins Triggered . | . . . . . . . . . . . . . . Exploration Rate (%) 39 | 4 31 46 56 71 34 16 31 33 15 77 41 31 68 Regions Visited 13 Branch Regions 4 Pre-discovered Areas 2 | . . 1 1 . . . . . . . . . . Known Exits Taken 5 | . . . . . . 1 1 1 . . 1 1 . Unknown Exits Taken 6 | 1 1 1 1 1 1 . . . . . . . . Scrap Searched 4 | . . 2 . 2 . . . . . . . . . Spaces Dug 42 | . . . . . . 1 3 4 6 . 12 16 . Terrain Destroyed 83 | . . . . . . 1 3 4 6 . 12 16 41 Melee 42 | . . . . . . 1 3 4 6 . 12 16 . Projectile . | . . . . . . . . . . . . . . AOE 41 | . . . . . . . . . . . . . 41 Terrain Rammed . | . . . . . . . . . . . . . . Walls Destroyed . | . . . . . . . . . . . . . . Machines Disabled . | . . . . . . . . . . . . . . Actions | -11 -10 -10 -10 -9 -8 -7 -6 -5 -4 -4 -4 -3 -3 --------- Run | Scr Mat Min Exi Min Mat Fac Fac Fac Fac Was Fac Res Qua Total 9423 | 31 346 329 208 291 1258 755 816 1711 580 65 1446 1144 443 Wait 890 | . 54 40 65 30 201 36 . 130 131 . 48 129 26 Move 7954 | 26 270 288 143 253 918 674 800 1515 437 65 1254 956 355 Hop 53 | . . . . . 1 4 2 17 2 . 6 10 11 Pick Up 33 | 3 2 1 . 5 5 2 1 4 . . 6 2 2 Fast Attach 63 | 2 3 . . 1 18 8 3 6 . . 5 7 10 Attach 15 | . . . . 2 1 2 1 2 . . . 2 5 Detach 20 | . 1 . . . 4 3 1 3 . . . 3 5 Swap 32 | . 1 . . . 7 3 2 9 . . 7 2 1 Drop 72 | . 3 . . . 21 7 2 5 . . 11 6 17 Fire 103 | . 11 . . . 82 6 . . . . . . 4 Melee 105 | . . . . . . 4 4 20 10 . 37 27 3 Ram 4 | . 1 . . . . . . . . . . . 3 Kick . | . . . . . . . . . . . . . . Crush . | . . . . . . . . . . . . . . Escape Stasis 73 | . . . . . . . . . . . 72 . 1 Rewire 6 | . . . . . . 6 . . . . . . . Trap . | . . . . . . . . . . . . . . Miscellaneous . | . . . . . . . . . . . . . . Route ------- -11/Scrapyard -10/Materials -10/Mines -10/Exiles (discovered 2 exits: *Min x2) -9/Mines -8/Materials -7/Factory (discovered 2 exits: *Fac x2) -6/Factory (discovered 3 exits: *Fac / *Low / DSF) -5/Factory (discovered 2 exits: *Fac / *Upp) -4/Factory -4/Waste -4/Factory (discovered 4 exits: *Res x4) -3/Research (discovered 2 exits: [*Arm] / *Qua) -3/Quarantine History --------- Turn | Location | Event 13 | -11/Scrapyard | Discovered new exit (range 12) 21 | -11/Scrapyard | Entered Materials 36 | -10/Materials | Discovered new exit (range 6) 248 | -10/Materials | Central database locked down 268 | -10/Materials | Entered Mines 271 | -10/Mines | Assisted by bots powering up and referring to "LRC-V3" 291 | -10/Mines | Met a Derelict bent on vengeance 305 | -10/Mines | Build established: Mutant 361 | -10/Mines | Deemed a non-threat by the Exiles lab entrance 361 | -10/Mines | Discovered new exit (range 5) 417 | -10/Mines | Met a Derelict testing a Signal Generator 482 | -10/Mines | Entered Exiles 482 | -10/Exiles | Accompanied by 3 allies 490 | -10/Exiles | Discovered new exit (range 16) 497 | -10/Exiles | Met 8R-AWN 507 | -10/Exiles | Met EX-HEX 524 | -10/Exiles | Met EX-BIN 539 | -10/Exiles | Met EX-DEC 543 | -10/Exiles | Learned location of Zion (-7) 564 | -10/Exiles | Discovered new exit (range 10) 633 | -10/Exiles | Entered Mines 633 | -9/Mines | Accompanied by 3 allies 741 | -9/Mines | Learned Materials trap positions 778 | -9/Mines | Discovered new exit (range 11) 786 | -9/Mines | Met a Derelict shopkeep closing up shop 823 | -9/Mines | Entered Materials 823 | -8/Materials | Accompanied by 3 allies 823 | -8/Materials | Evolved 4 slots: Utility x4 824 | -8/Materials | Loaded intel: 20 trap records 948 | -8/Materials | Repaired Broken Gravmag System 1671 | -8/Materials | Build established: Scout 1750 | -8/Materials | Discovered new exit (range 19) 1759 | -8/Materials | Entered Factory 1759 | -7/Factory | Evolved 2 slots: Propulsion x2 1793 | -7/Factory | Discovered new exit (range 9) 2031 | -7/Factory | Discovered new exit (range 12) 2035 | -7/Factory | Identified exit to Factory 2036 | -7/Factory | Entered another Factory area 2036 | -6/Factory | Evolved 2 slots: Utility x2 2069 | -6/Factory | Discovered new exit (range 12) 2072 | -6/Factory | Identified exit to Lower Caves 2205 | -6/Factory | Fabricated Imp. Focal Shield? 2212 | -6/Factory | Identified exit to DSF 2229 | -6/Factory | Discovered new exit (range 7) 2231 | -6/Factory | Identified exit to Factory 2267 | -6/Factory | Entered another Factory area 2267 | -5/Factory | Evolved 2 slots: Utility x2 2405 | -5/Factory | Discovered new exit (range 15) 2408 | -5/Factory | Identified exit to Upper Caves 2885 | -5/Factory | Discovered new exit (range 15) 2889 | -5/Factory | Identified exit to Factory 2889 | -5/Factory | Entered another Factory area 2889 | -4/Factory | Evolved 2 slots: Power x1, Utility x1 3100 | -4/Factory | Discovered new exit (range 6) 3101 | -4/Factory | Identified exit to Research 3137 | -4/Factory | Build established: Ninja 3164 | -4/Factory | Sucked down chute 3164 | -4/Factory | Entered Waste 3165 | -4/Waste | Met a frightened Derelict 3167 | -4/Waste | Spotted C-40 Crusher 3169 | -4/Waste | Spotted C-40 Crusher 3170 | -4/Waste | Spotted C-40 Crusher 3172 | -4/Waste | Spotted C-40 Crusher 3176 | -4/Waste | Discovered new exit (range 20) 3176 | -4/Waste | Spotted C-40 Crusher 3178 | -4/Waste | Spotted C-40 Crusher 3181 | -4/Waste | Identified exit to Factory 3181 | -4/Waste | Entered Factory 3192 | -4/Factory | Spotted B-86 Titan 3532 | -4/Factory | Spotted B-86 Titan 3783 | -4/Factory | Entered Research 3783 | -3/Research | Evolved 2 slots: Utility x2 3998 | -3/Research | Discovered new exit (range 21) 4011 | -3/Research | Spotted B-86 Titan 4220 | -3/Research | Spotted B-86 Titan 4295 | -3/Research | Discovered new exit (range 21) 4298 | -3/Research | Identified exit to Quarantine 4299 | -3/Research | Entered Quarantine 4306 | -3/Quarantine | Found Alien Artifact 4306 | -3/Quarantine | Identified Core Reset Matrix 4306 | -3/Quarantine | Used Core Reset Matrix 4310 | -3/Quarantine | Detected hypermatrix surge 4310 | -3/Quarantine | Sensed 1 artifact in vicinity 4451 | -3/Quarantine | Met incapacitated Sigix Warrior 4451 | -3/Quarantine | Lockdown squad dispatched 4458 | -3/Quarantine | Acquired the access code to the Sigix quarantine chamber 4459 | -3/Quarantine | Unlocked Sigix quarantine chamber 4473 | -3/Quarantine | Found Sigix Broadsword 4487 | -3/Quarantine | Core integrity fell below 50% 4493 | -3/Quarantine | Spotted Lightning 4496 | -3/Quarantine | Spotted Lightning 4496 | -3/Quarantine | Spotted Lightning 4500 | -3/Quarantine | Scanned by Researcher 4503 | -3/Quarantine | Core integrity fell below 20% 4506 | -3/Quarantine | Destroyed by Lightning with EMDS Last Messages --------------- 04500_ U-05 Engineer builds a Wall. 04500_ U-05 Engineer lays Concrete. 04500_ C-55 Analyst calls for reinforcements. 04500_ ALERT: Hostile activity reported, dispatching reinforcements to area. 04500_ Held in stasis. 04500_ C-55 Analyst is analyzing... 04500_ ALERT: Encountered unknown unique technology, formulating response. 04501_ Penetrated by EMDS Slug. 04501_ U-05 Engineer lays Concrete. 04502_ Slammed into I-47 Archangel. 04502_ U-05 Engineer lays Concrete. 04503_ Penetrated by EMDS Slug. 04503_ Imp. Melee Analysis Suite destroyed. 04503_ Penetrated by EMDS Slug. 04503_ U-05 Engineer lays Concrete. 04504_ Penetrated by EMDS Slug. 04504_ Lightning held in stasis. 04505_ Slammed into G-67 Veteran. 04505_ EMDS Slug penetrates Wall. Map ----- +----------------------------------------------------+ | | | | | | | | | | | | | | | | | | | | | | | | | | | | | ?###########################?????????????????????? | | ?# # "T" #?????????????????????? | | ?# " " # """ =#? ???????????????????? | | ## "* " # """ ? ????????????????????? | | ## # """??????? ????????????????? | | ?# = # ??????????????????????????? | | ## =*| # ??? #?##+###??????????????? | | # *! ####+########## ##########?????? | | %[ !% c h ???? | | = = ! h wi g #???????? | | ! h g #???????? | | # "T ##/##### @ ## ! ##### #????????? | | ###"" # ##??? ##??????????????? | | ??#### """ """ # #?#? ?????????????????? | | #?##?# # "&" "&" ######?? #???????????????? | | ###?## """ """ #??###? ? ?????????????? | | ??] # ""T"" ###?#??? ? ?????????????? | | ? # ##?###??? ###?#??????#????? | | """ # # #?##??? ????#?#???#?????#?? | | """" ## # ###?## ?? #??????????????? | | """" ## #####+#####?#### ?? ? ???????#????? | | ?""" ?## ##?## #??###?#???? ?????? ????? ????? | | ""? ## ##### ##?###??#? ?? ???????????????? | | ## ##### ###?####?? ?? #???? ?????????? | | ############/##### ###??###?#?#??????? ####??#?? | | = #?###?#?##???##??? ?????? | | ######### #####?#?#?????? ?? ??#??? | | #???#?### """"" ####?##?#??#?? ? ??##?? | | ##?####?# """"" ###?##?#?#????# ##??????? | | # """"" ### ###?####?##???# ######### | | ?"?"? "?# #######?###??###?#? | | ?"""?""# ####""##??#??##?#?? | | """"?"?# ####T"############# | | ?""" ??# | | """"?""# A | | ? ""# ################### | +----------------------------------------------------+ Best States ------------- Heat Dissipation 46 Energy Generation 37 Energy Capacity 310 Matter Stores 300 Matter Capacity 300 Sight Range 22 Robot Scan Range 18 Terrain Scan Range 24 Terrain Scan Density 210 Jamming Range 14 Power Amplification 20 Additional Mass Support 9 Evasion (%) 75 Targeting Accuracy 16 Melee Accuracy 12 Recoil Reduction 2 Offensive Hacking 14 Defensive Hacking 10 Item Schematics ----------------- None Robot Schematics ------------------ None Fabricated ------------ Imp. Focal Shield | x2 | -6/Factory | Preloaded Alien Tech Used ----------------- Core Reset Matrix Sigix Broadsword Achievements -------------- Alien Roots Dodgeball, But With Guns False Reunion Whoosh! Challenges ------------ None Game ------ Seed GrenadeAccelerationCoupler Manual? 0 Play Time 02:00:40 Cumulative 153.3 hours Start 2022.06.07 @ 21:52:19 End 2022.06.08 @ 11:46:12 Sessions 3 Manual Loads 0 Difficulty Rogue Special Mode None Game No. 131 Rogue 131 Adventurer 0 Explorer 0 Win Type - Total 3 Types 3/0/0/0/0/0/0/0/0 Lore% 61 Gallery% 66 Achievement% 57 Wizard Run 0 Options --------- ASCII 1 Keyboard 1 Movement Vi Keybinds 0 Fullscreen 1 Font 18/TerminusBold Map View 76x50 Tactical HUD 1 Map Filters NONE Filters NONE Steam 1 RUN: 362729b9-215d-4701-8a6d-47cab173bd29